bitfinex/quotes_ETHUSD_20240810
["timestamp","ask_amount","ask_price","bid_price","bid_amount"]
[1723254666235,2.3758,2606.7,2606.1,3.837]
[1723254666560,3.83643,2606.6,2605.9,3.83732]
[1723254666722,3.83643,2606.6,2606.0,4.466352]
[1723254667352,3.83659,2606.5,2606.0,4.466352]
[1723254667659,3.83659,2606.5,2606.0,0.629092]
[1723254667857,6.21216,2606.7,2606.2,3.83696]
[1723254668057,3.83614,2606.8,2606.1,3.83702]
[1723254668427,3.83642,2606.6,2606.1,3.83702]
[1723254668764,3.83642,2606.6,2606.0,3.83726]
[1723254668939,3.8366,2606.5,2605.9,3.83735]
[1723254669136,3.8366,2606.5,2605.9,4.466445]
[1723254669463,3.8366,2606.5,2605.9,8.303805]
[1723254669630,3.8366,2606.5,2605.9,4.466445]
[1723254669964,7.67293,2606.6,2606.0,3.83727]
[1723254670160,3.8362,2606.8,2606.1,3.83713]
[1723254670362,3.8362,2606.8,2606.2,3.83699]
[1723254670547,3.8362,2606.8,2606.1,3.83713]
[1723254671226,3.8362,2606.8,2606.2,3.83697]
[1723254671537,7.67244,2606.8,2606.2,3.83697]
[1723254671764,3.8362,2606.8,2606.2,3.83697]
[1723254671973,2.3758,2606.9,2606.4,3.8367]
[1723254672260,3.83549,2607.3,2606.7,3.83625]
[1723254672448,3.83549,2607.3,2606.7,6.28985]
[1723254672655,3.83661,2606.5,2606.0,7.49]
[1723254672821,2.3758,2606.4,2605.9,3.83736]
[1723254673023,2.3758,2606.4,2605.7,6.29125]
[1723254673266,3.837,2606.2,2605.5,7.49]
[1723254673424,3.83693,2606.3,2605.7,3.83772]
[1723254673624,3.83693,2606.3,2605.5,15.16586]
[1723254673826,3.83715,2606.1,2605.5,15.16586]
[1723254674129,3.83693,2606.3,2605.7,3.83772]
[1723254674522,3.83723,2606.1,2605.5,13.089846]
[1723254674738,3.83723,2606.1,2605.5,15.16585]
[1723254675175,3.83723,2606.1,2605.5,11.3279]
[1723254675377,7.67446,2606.1,2605.5,11.3279]
[1723254675589,3.83752,2605.9,2605.5,7.49]
[1723254675881,7.67569,2605.7,2605.1,6.29208]
[1723254676050,3.83836,2605.3,2604.8,2.4536]
[1723254676471,3.83836,2605.3,2604.8,6.29266]
[1723254676776,4.794667,2606.1,2604.0,8.41837086]
[1723254676777,2.4078,2605.9,2605.2,2.2939]
[1723254676946,3.83738,2606.0,2605.4,3.83817]
[1723254677297,3.83738,2606.0,2605.2,6.13228]
[1723254677298,1.008225,2606.0,2605.2,6.13228]
[1723254677441,3.83782,2605.7,2605.2,2.2939]
[1723254677635,3.83782,2605.7,2605.5,0.04879879]
[1723254677984,3.8376,2605.8,2605.6,0.04879879]
[1723254678186,2.4078,2606.1,2605.6,0.04879879]
[1723254678494,2.4078,2606.1,2605.4,3.83809]
[1723254678495,3.83731,2606.0,2605.4,3.83809]
[1723254678706,2.4078,2606.1,2605.7,0.04879879]
[1723254679052,3.83733,2606.0,2605.5,0.39148449]
[1723254679249,3.83733,2606.0,2605.4,3.83809]
[1723254679449,3.83746,2605.9,2605.4,3.83809]
[1723254679653,6.24506,2606.1,2605.5,0.04879879]
[1723254679991,7.67471,2606.0,2605.5,0.04879879]
[1723254680196,3.83747,2605.9,2605.5,0.04879879]
[1723254681268,3.83747,2605.9,2605.3,3.83829]
[1723254681586,3.83761,2605.8,2605.3,1.0583812]
[1723254681801,3.83761,2605.8,2605.4,0.04965935]
[1723254682150,3.83747,2605.9,2605.3,3.83824]
[1723254682353,3.83747,2605.9,2605.5,0.04966841]
[1723254682554,7.6748,2606.0,2605.4,3.83816]
[1723254682791,3.83738,2606.0,2605.4,3.83808]
[1723254682991,7.67421,2606.2,2605.6,2.4067]
[1723254683196,3.83708,2606.2,2605.6,7.25778584]
[1723254683374,7.67417,2606.2,2605.7,0.04963216]
[1723254683573,3.83716,2606.1,2605.7,0.04963216]
[1723254683803,3.83737,2606.0,2605.7,0.04963216]
[1723254684800,6.997212,2606.0,2605.7,0.04963216]
[1723254684981,7.67518,2605.8,2605.7,0.04963216]
[1723254685179,3.83759,2605.8,2605.2,3.83839]
[1723254685372,3.83775,2605.7,2605.2,3.83839]
[1723254685935,2.3924,2606.0,2605.0,2.4067]
[1723254686097,3.83818,2605.4,2604.8,10.0846]
[1723254686253,3.83818,2605.4,2604.9,3.83891]
[1723254687153,3.83818,2605.4,2604.9,3.83882]
[1723254687382,3.83818,2605.4,2604.8,2.4067]
[1723254687383,3.83834,2605.3,2604.8,6.24574]
[1723254687559,3.83834,2605.3,2604.8,6.870324]
[1723254688153,2.3924,2605.6,2604.6,6.24605]
[1723254688411,2.3924,2605.6,2604.4,3.0]
[1723254688412,2.3924,2605.5,2604.4,3.83955]
[1723254688574,3.83863,2605.1,2604.4,3.83963]
[1723254689069,3.83859,2605.2,2604.4,3.83963]
[1723254689408,3.83877,2605.0,2604.5,4.464133]
[1723254689709,3.83821,2605.4,2604.5,0.624633]
[1723254689913,3.83821,2605.4,2604.8,3.83896]
[1723254690108,7.67648,2605.4,2604.8,3.83896]
[1723254690512,3.83821,2605.4,2604.8,3.83896]
[1723254690675,3.83821,2605.4,2604.7,3.83917]
[1723254690875,3.83821,2605.4,2604.7,4.463768]
[1723254691299,3.83836,2605.3,2604.7,4.463768]
[1723254691902,3.83848,2605.2,2604.7,4.463768]
[1723254692109,3.83848,2605.2,2604.1,3.84003]
[1723254692110,3.83877,2605.0,2604.8,0.05098221]
[1723254692410,3.83877,2605.0,2604.4,3.83954]
[1723254692589,3.83877,2605.0,2604.9,0.05085529]
[1723254692777,7.67704,2605.2,2604.6,3.83934]
[1723254692978,3.83848,2605.2,2604.9,0.05085529]
[1723254693278,3.83864,2605.1,2604.6,3.83934]
[1723254693517,10.06968,2605.1,2605.0,0.05097315]
[1723254693808,2.3924,2605.1,2604.7,0.05097315]
[1723254693989,3.839,2604.9,2604.4,4.848154]
[1723254694192,3.839,2604.9,2604.8,0.05097315]
[1723254694391,3.839,2604.9,2604.4,4.848154]
[1723254694578,3.839,2604.9,2604.8,0.05097315]
[1723254694779,3.839,2604.9,2604.4,4.848154]
[1723254694979,3.839,2604.9,2604.8,0.05097315]
[1723254695178,3.839,2604.9,2604.4,4.848154]
[1723254695501,6.23052,2605.5,2604.7,2.4067]
[1723254695812,3.83835,2605.3,2604.8,3.89010568]
[1723254696016,3.83835,2605.3,2604.8,0.05104568]
[1723254696212,3.83855,2605.2,2604.8,0.05104568]
[1723254696419,3.83885,2605.0,2604.4,3.83956]
[1723254696582,3.83885,2605.0,2604.9,0.05181608]
[1723254696908,3.83885,2605.0,2604.4,3.83956]
[1723254697236,3.83885,2605.0,2604.9,0.05181608]
[1723254697378,4.845846,2605.0,2604.3,2.4067]
[1723254697722,3.83885,2605.0,2604.9,0.05189768]
[1723254697876,2.3924,2605.1,2604.5,3.83942]
[1723254698298,3.83899,2604.9,2604.6,0.05197929]
[1723254698673,3.83899,2604.9,2604.3,6.24647]
[1723254698877,3.83899,2604.9,2604.7,0.05197929]
[1723254699202,3.83899,2604.9,2604.8,0.05197929]
[1723254699405,3.83899,2604.9,2604.3,7.255102]
[1723254699603,3.83899,2604.9,2604.4,0.05197929]
[1723254699805,3.83861,2605.2,2604.6,2.2647]
[1723254700002,3.83861,2605.2,2604.7,3.83912]
[1723254700302,2.4444,2605.3,2604.7,3.89100861]
[1723254700503,3.83824,2605.4,2604.9,7.6778]
[1723254700727,3.83824,2605.4,2604.9,3.8389]
[1723254701016,6.28236,2605.6,2605.0,0.05188861]
[1723254701203,3.83816,2605.5,2605.0,0.05188861]
[1723254702679,4.466146,2605.6,2605.1,2.3705]
[1723254702890,4.466216,2605.6,2605.0,0.05188861]
[1723254703084,3.83825,2605.4,2605.2,0.05161664]
[1723254703284,3.83825,2605.4,2604.9,10.04816]
[1723254703513,3.83825,2605.4,2605.3,0.05161664]
[1723254703720,3.83798,2605.6,2605.0,3.83873]
[1723254704020,3.83797,2605.6,2605.0,3.83873]
[1723254704221,3.83805,2605.5,2605.1,0.05160757]
[1723254704615,3.83805,2605.5,2604.9,10.669103]
[1723254704842,3.83805,2605.5,2605.2,0.05160757]
[1723254705140,3.8382,2605.4,2604.9,2.3705]
[1723254705340,3.8382,2605.4,2605.3,0.05160757]
[1723254705511,0.24487,2605.8,2604.4,9.8605]
[1723254705512,2.4487,2605.5,2604.4,9.8605]
[1723254705842,6.28679,2605.5,2604.9,3.8388]
[1723254706004,10.12493,2605.5,2604.9,3.8388]
[1723254706200,3.83809,2605.5,2604.9,3.8388]
[1723254706402,3.83809,2605.5,2605.0,0.05150786]
[1723254707312,3.83819,2605.4,2605.0,0.05150786]
[1723254709440,3.83809,2605.5,2605.0,3.89026786]
[1723254709656,3.83792,2605.6,2605.0,0.67758865]
[1723254710150,6.28602,2606.0,2605.4,3.8381]
[1723254710325,10.12344,2606.0,2605.4,3.8381]
[1723254710741,10.12344,2606.0,2605.5,0.05114524]
[1723254710962,6.28602,2606.0,2605.5,3.88917524]
[1723254711115,6.28602,2606.0,2605.5,0.05114524]
[1723254711116,3.83744,2605.9,2605.5,0.05114524]
[1723254711527,3.83744,2605.9,2605.3,3.83821]
[1723254711712,3.83759,2605.8,2605.6,0.05113618]
[1723254711908,3.83759,2605.8,2605.3,1.04989019]
[1723254712105,7.67527,2605.8,2605.7,0.05113618]
[1723254712324,3.83759,2605.8,2605.1,3.83847]
[1723254712524,7.67529,2605.8,2605.2,4.28489508]
[1723254712772,3.83774,2605.7,2605.2,4.33582281]
[1723254713077,3.83789,2605.6,2605.2,0.49738281]
[1723254713561,3.83789,2605.6,2605.2,0.05092773]
[1723254713768,3.83766,2605.8,2605.2,0.05092773]
[1723254713769,7.67536,2605.8,2605.2,0.05092773]
[1723254714066,3.83774,2605.7,2605.2,0.05092773]
[1723254714237,3.83766,2605.8,2605.2,0.05092773]
[1723254714238,3.83792,2605.6,2605.2,0.05092773]
[1723254714424,2.4487,2606.0,2605.2,0.05092773]
[1723254714425,3.8381,2605.5,2605.2,0.05092773]
[1723254714624,3.83828,2605.4,2604.9,2.3705]
[1723254714866,3.83828,2605.4,2605.0,0.05102742]
[1723254715450,6.28679,2605.5,2605.0,0.05102742]
[1723254715771,6.91547,2605.5,2605.0,0.05102742]
[1723254716329,3.83841,2605.3,2604.7,9.8605]
[1723254716528,3.83841,2605.3,2604.7,7.49]
[1723254716729,3.83841,2605.3,2604.8,0.05114524]
[1723254716931,3.8387,2605.1,2604.8,0.05114524]
[1723254717163,3.8387,2605.1,2604.5,2.3705]
[1723254717164,3.83891,2604.9,2604.5,2.3705]
[1723254717536,3.83891,2604.9,2604.4,3.83964]
[1723254717862,6.2407,2605.1,2604.5,3.8394]
[1723254718037,3.83878,2605.0,2604.6,0.38394]
[1723254718260,3.83878,2605.0,2604.5,3.8394]
[1723254719490,3.83878,2605.0,2604.4,3.83963]
[1723254719783,10.07943,2605.1,2604.5,3.83949]
[1723254719956,10.07942,2605.1,2604.5,5.597113]
[1723254720153,10.07941,2605.1,2604.5,5.597113]
[1723254720489,3.8382,2605.4,2604.8,3.83898]
[1723254720672,6.24017,2605.5,2604.8,3.83898]
[1723254720991,7.67675,2605.3,2604.8,1.008509]
[1723254721481,3.83834,2605.3,2604.8,1.008509]
[1723254721791,3.8378,2605.7,2604.9,3.8389]
[1723254721945,2.4486,2605.8,2605.1,3.83848]
[1723254722142,2.4486,2605.8,2604.5,10.931343]
[1723254722487,2.4486,2605.8,2604.3,7.49]
[1723254722488,3.83893,2604.9,2604.6,0.05023787]
[1723254722678,7.67793,2604.9,2604.6,0.05023787]
[1723254722992,7.67793,2604.9,2604.3,11.32967]
[1723254723297,7.67793,2604.9,2604.4,0.04856327]
[1723254723681,3.83925,2604.7,2604.4,0.04856327]
[1723254723901,2.4486,2604.6,2604.4,0.04856327]
[1723254724117,2.4486,2604.6,2604.0,3.8402]
[1723254724405,6.28796,2604.6,2604.5,0.0469445]
[1723254724609,6.916745,2604.6,2604.5,0.04532572]
[1723254724796,6.916745,2604.6,2604.0,3.8402]
[1723254725107,3.83951,2604.5,2604.1,0.04532572]
[1723254725321,3.83978,2604.4,2604.1,0.04532572]
[1723254725483,3.83978,2604.4,2603.8,6.17474]
[1723254725673,3.83978,2604.4,2604.2,0.04532572]
[1723254726094,3.83978,2604.4,2603.8,6.17474]
[1723254726293,3.83978,2604.4,2604.3,0.04532572]
[1723254726514,3.83977,2604.4,2603.6,6.17503]
[1723254726698,10.12869,2604.2,2603.6,3.84073]
[1723254727014,6.28863,2604.2,2603.6,3.84073]
[1723254727312,3.84024,2604.0,2603.4,6.17533]
[1723254727527,3.84024,2604.0,2603.4,6.792863]
[1723254727817,6.28863,2604.2,2603.5,3.84089]
[1723254727986,3.84041,2603.9,2603.4,2.951833]
[1723254728186,4.224451,2603.9,2603.2,3.84139]
[1723254728396,3.84062,2603.8,2603.3,3.0]
[1723254728718,2.4486,2604.2,2603.1,2.3343]
[1723254728719,3.84084,2603.6,2603.1,2.3343]
[1723254728922,6.28859,2604.2,2602.6,0.60165144]
[1723254728923,3.977,2604.1,2602.8,6.17624]
[1723254729213,3.84139,2603.3,2602.8,2.3343]
[1723254729879,6.28963,2603.5,2602.9,3.84179]
[1723254730195,6.28963,2603.5,2602.8,2.3343]
[1723254730196,3.84119,2603.4,2602.8,2.3343]
[1723254730405,6.28963,2603.5,2602.8,7.23830214]
[1723254730618,3.8407,2603.7,2603.2,3.84132]
[1723254730774,3.84051,2603.9,2603.2,7.68264]
[1723254730975,4.224551,2603.9,2603.2,7.68264]
[1723254731291,4.224551,2603.9,2603.3,3.84125]
[1723254731508,3.83987,2604.3,2603.5,3.84089]
[1723254731677,7.67919,2604.5,2603.9,3.8403]
[1723254731884,3.83968,2604.4,2603.9,6.1746]
[1723254732082,6.28789,2604.7,2603.9,6.1746]
[1723254732083,3.83946,2604.6,2603.9,6.1746]
[1723254732479,3.83969,2604.4,2603.9,2.3343]
[1723254732900,3.83953,2604.5,2603.9,2.3343]
[1723254733180,6.28787,2604.7,2604.1,3.84009]
[1723254733539,3.83894,2604.9,2604.1,3.84]
[1723254733540,3.83899,2604.9,2604.1,3.84]
[1723254733678,3.83899,2604.9,2604.3,3.83979]
[1723254733882,4.467749,2604.9,2604.3,3.83979]
[1723254734577,3.83925,2604.7,2604.1,3.83997]
[1723254734775,0.60160286,2605.5,2604.3,2.3343]
[1723254735024,4.43967286,2605.5,2604.7,3.83919]
[1723254735227,3.83847,2605.3,2604.8,2.3343]
[1723254735379,7.6772,2605.2,2604.5,6.17372]
[1723254735581,0.44396729,2605.5,2604.2,2.3343]
[1723254735582,3.83885,2605.0,2604.2,2.3343]
[1723254735873,3.83924,2604.7,2604.2,2.3343]
[1723254736331,3.83918,2604.8,2604.2,2.3343]
[1723254736483,3.8388,2605.0,2604.3,3.8398]
[1723254736815,3.83932,2604.7,2604.4,0.04459534]
[1723254737113,3.83918,2604.8,2604.2,6.17421]
[1723254737275,3.83918,2604.8,2604.5,0.04459534]
[1723254737480,3.83918,2604.8,2604.2,6.17421]
[1723254737481,3.83918,2604.8,2604.2,2.3343]
[1723254737683,3.83918,2604.8,2604.6,0.04459534]
[1723254738027,3.83918,2604.8,2604.7,0.04459534]
[1723254738193,3.83918,2604.8,2604.2,3.335718]
[1723254738397,3.83892,2604.9,2604.3,0.04459534]
[1723254738398,3.83921,2604.7,2604.3,0.04459534]
[1723254738704,3.83869,2605.1,2604.3,0.72202633]
[1723254738887,3.83869,2605.1,2604.5,3.8394]
[1723254739219,3.83891,2605.0,2604.4,3.88418534]
[1723254739422,3.83891,2605.0,2604.5,0.04429597]
[1723254739718,3.83869,2605.1,2604.5,0.04429597]
[1723254740014,7.67743,2605.1,2604.5,3.88379597]
[1723254740228,3.83869,2605.1,2604.5,3.88379597]
[1723254741477,3.83918,2604.8,2604.5,0.04429597]
[1723254741731,2.3827,2605.0,2604.5,0.04429597]
[1723254741880,3.83936,2604.6,2603.9,6.21509]
[1723254742083,3.83936,2604.6,2604.0,4.761639]
[1723254742384,3.83967,2604.4,2604.0,0.921509]
[1723254742923,3.83967,2604.4,2603.9,2.3748]
[1723254745241,3.84008,2604.2,2603.6,2.3748]
[1723254745547,7.81625,2604.7,2603.0,7.49]
[1723254745548,3.84099,2603.5,2603.0,6.21641]
[1723254747255,3.84099,2603.5,2602.8,6.21672]
[1723254747419,3.84136,2603.3,2602.8,2.3748]
[1723254747619,3.84106,2603.5,2602.8,2.3748]
[1723254747818,3.84106,2603.5,2602.9,3.84183]
[1723254747819,7.68217,2603.5,2602.9,3.84183]
[1723254748057,3.84106,2603.5,2603.0,0.0444683]
[1723254749558,3.84106,2603.5,2603.0,3.8861883]
[1723254750415,6.22347,2603.7,2603.1,3.84155]
[1723254750618,6.22347,2603.7,2603.0,3.84172]
[1723254750818,6.845817,2603.7,2603.1,0.0444683]
[1723254751059,6.845807,2603.7,2602.8,10.05865]
[1723254751243,3.84107,2603.5,2602.9,0.0444683]
[1723254751446,4.5256817,2603.5,2602.9,3.8863083]
[1723254751648,2.3827,2604.0,2603.4,3.84102]
[1723254751963,2.3827,2604.0,2602.9,3.8862583]
[1723254751964,3.8402,2604.1,2603.3,6.21595]
[1723254752122,3.84034,2604.0,2603.5,0.0453665]
[1723254752320,3.8402,2604.1,2603.5,3.84097]
[1723254752556,6.22256,2604.3,2603.5,7.68185]
[1723254752720,3.8401,2604.1,2603.6,0.04609236]
[1723254755478,7.6803,2604.1,2603.6,0.04609236]
[1723254755649,3.8401,2604.1,2603.6,0.04609236]
[1723254756483,3.84048,2603.9,2603.6,0.04609236]
[1723254756863,3.84048,2603.9,2603.3,6.21598]
[1723254757084,3.84048,2603.9,2603.4,0.04609236]
[1723254757254,7.68039,2604.1,2603.4,3.88712236]
[1723254757466,3.84017,2604.1,2603.4,3.88712236]
[1723254758476,3.84026,2604.0,2603.4,3.88712236]
[1723254759571,3.84098,2603.5,2603.4,0.04609236]
[1723254759779,3.84124,2603.4,2602.7,3.84207]
[1723254760207,3.84143,2603.2,2602.8,0.04591086]
[1723254760511,3.84143,2603.2,2602.6,6.32401]
[1723254760803,3.84143,2603.2,2602.9,0.04621944]
[1723254761300,3.84167,2603.1,2602.9,0.04621944]
[1723254761604,6.15753,2603.2,2602.9,0.04621944]
[1723254761605,7.68344,2603.0,2602.9,0.04621944]
[1723254761964,7.68423,2602.8,2602.2,6.18902]
[1723254762390,7.68423,2602.8,2602.3,0.04531424]
[1723254762391,3.84211,2602.8,2602.3,0.04531424]
[1723254762695,3.84211,2602.8,2602.2,10.03182]
[1723254762902,3.84187,2602.9,2602.4,0.04564113]
[1723254763114,3.84187,2602.9,2602.3,3.84268]
[1723254763270,3.84187,2602.9,2602.5,0.04564113]
[1723254763467,3.84187,2602.9,2602.3,3.84268]
[1723254763664,3.84187,2602.9,2602.4,0.04564113]
[1723254764504,6.15757,2603.2,2602.4,0.04564113]
[1723254765004,6.15757,2603.2,2602.2,6.18902]
[1723254765173,6.15757,2603.2,2602.5,0.04560481]
[1723254765378,9.99914,2603.2,2602.5,3.84245]
[1723254765713,3.8407,2603.7,2603.1,3.84142]
[1723254765868,3.8407,2603.7,2602.9,3.84179]
[1723254765869,3.8407,2603.7,2602.9,3.84174]
[1723254766062,3.84085,2603.6,2603.0,0.04553216]
[1723254766489,3.84085,2603.6,2603.0,3.88721216]
[1723254767283,7.68179,2603.6,2603.0,0.04553216]
[1723254767479,3.84085,2603.6,2603.0,0.04553216]
[1723254768729,6.9575286,2603.8,2603.0,0.04553216]
[1723254768929,6.9575286,2603.8,2603.1,3.84148]
[1723254769418,6.9575286,2603.8,2603.2,0.04457234]
[1723254769887,6.9575286,2603.8,2603.2,3.88588234]
[1723254771015,3.84077,2603.7,2603.2,0.04457234]
[1723254771216,4.57492546,2603.7,2603.0,3.84163]
[1723254771528,3.8404,2603.9,2603.3,3.84119]
[1723254771729,3.84055,2603.8,2603.3,2.3462]
[1723254771929,3.84055,2603.8,2603.4,0.04445433]
[1723254771930,0.768095,2603.7,2603.4,0.04445433]
[1723254772086,3.8404,2603.9,2603.4,0.04445433]
[1723254772087,7.68092,2603.9,2603.4,0.04445433]
[1723254772439,3.8404,2603.9,2603.5,0.04445433]
[1723254772633,3.8404,2603.9,2603.3,3.84119]
[1723254772927,3.8404,2603.9,2603.4,0.04445433]
[1723254773423,3.8404,2603.9,2603.1,2.3462]
[1723254773594,3.8404,2603.9,2603.5,0.04445433]
[1723254773822,3.84068,2603.7,2603.1,2.3462]
[1723254774024,3.8411,2603.5,2603.2,0.04401858]
[1723254774224,3.84148,2603.2,2602.6,3.0]
[1723254774527,3.84162,2603.1,2602.7,0.04401858]
[1723254774929,3.84162,2603.1,2602.5,2.3462]
[1723254775133,3.84162,2603.1,2602.8,0.04361299]
[1723254775347,3.84175,2603.0,2602.5,2.3462]
[1723254775545,3.84175,2603.0,2602.9,0.04361299]
[1723254775718,3.84175,2603.0,2602.6,0.23462]
[1723254775917,3.84188,2602.9,2602.6,0.23462]
[1723254776274,13.97553,2602.8,2602.7,0.04361299]
[1723254776451,3.84286,2602.3,2601.8,2.3462]
[1723254776755,3.84299,2602.2,2601.9,0.04361299]
[1723254776956,3.84299,2602.2,2601.9,0.28259429]
[1723254777162,3.84299,2602.2,2601.9,0.2389813]
[1723254777666,3.84304,2602.1,2602.0,0.04361299]
[1723254777868,3.84286,2602.3,2602.0,0.04361299]
[1723254778365,3.84304,2602.1,2602.0,0.04361299]
[1723254778664,3.84304,2602.1,2601.5,2.4645]
[1723254778869,3.843,2602.2,2602.0,0.04361299]
[1723254779167,3.84307,2602.1,2601.5,2.4645]
[1723254779376,3.84321,2602.0,2601.5,2.4645]
[1723254779565,7.6865,2602.0,2601.5,2.72340081]
[1723254779732,3.84321,2602.0,2601.5,2.72340081]
[1723254780286,3.84321,2602.0,2601.4,0.1245081]
[1723254780287,3.84393,2601.6,2601.4,0.1245081]
[1723254780428,3.84393,2601.5,2601.4,0.1245081]
[1723254780630,7.68786,2601.5,2601.4,0.1245081]
[1723254781031,3.84393,2601.5,2601.4,0.1245081]
[1723254781233,3.84378,2601.6,2601.4,0.1245081]
[1723254781673,3.84355,2601.8,2601.4,0.1245081]
[1723254781882,3.8432,2602.0,2601.5,0.04361299]
[1723254782635,3.8435,2601.8,2601.5,0.04361299]
[1723254782838,3.84335,2601.9,2601.5,0.04361299]
[1723254783482,3.84253,2602.5,2601.5,3.88746299]
[1723254783807,3.84284,2602.3,2601.7,3.84363]
[1723254783961,3.84253,2602.5,2601.7,3.84363]
[1723254783962,3.84253,2602.5,2601.8,2.4818]
[1723254784167,3.84253,2602.5,2601.8,2.60147707]
[1723254784490,3.84223,2602.7,2601.9,0.64449971]
[1723254784688,2.2716,2602.9,2601.9,0.64449971]
[1723254784689,3.84259,2602.5,2601.9,0.64449971]
[1723254785213,3.84286,2602.3,2602.0,0.04525699]
[1723254785571,7.68572,2602.3,2602.0,0.04525699]
[1723254785769,3.84286,2602.3,2601.8,2.4818]
[1723254785971,3.84264,2602.4,2602.1,0.04525699]
[1723254786170,3.84277,2602.3,2601.8,3.15447771]
[1723254786684,3.84277,2602.3,2601.9,0.04525699]
[1723254786882,3.8425,2602.5,2601.9,0.04525699]
[1723254786883,3.8431,2602.1,2601.9,0.04525699]
[1723254787099,3.8431,2602.1,2601.5,2.4818]
[1723254787407,7.68712,2601.8,2601.4,0.1245081]
[1723254787635,3.8435,2601.8,2601.4,0.1245081]
[1723254787777,3.84327,2602.0,2601.4,3.9684881]
[1723254787975,3.84307,2602.1,2601.5,0.39684881]
[1723254788293,3.84319,2602.0,2601.5,0.39684881]
[1723254788487,3.84319,2602.0,2601.4,0.1245081]
[1723254788711,3.84304,2602.1,2601.4,0.1245081]
[1723254789013,3.84304,2602.1,2601.6,2.4818]
[1723254789601,3.84281,2602.3,2601.6,6.32557]
[1723254789773,7.68566,2602.3,2601.7,0.632563]
[1723254790115,7.68567,2602.3,2601.7,0.632563]
[1723254790616,3.84255,2602.5,2601.7,0.632563]
[1723254790783,3.84255,2602.5,2601.9,3.84332]
[1723254791715,3.84255,2602.5,2601.7,3.8435]
[1723254791919,3.84276,2602.3,2601.7,3.8435]
[1723254792220,3.84329,2602.0,2601.4,0.1245081]
[1723254792577,3.84279,2602.3,2601.5,3.84391]
[1723254792774,3.84279,2602.3,2601.6,3.8437]
[1723254792999,3.84279,2602.3,2601.5,3.84391]
[1723254793000,3.84291,2602.2,2601.5,3.84384]
[1723254793200,3.84252,2602.5,2601.8,3.84347]
[1723254793409,3.84252,2602.5,2601.7,6.32541]
[1723254793615,3.8426,2602.4,2601.9,3.84323]
[1723254793791,3.8426,2602.4,2601.7,6.32531]
[1723254793992,3.8426,2602.4,2601.8,0.632541]
[1723254794293,3.84223,2602.7,2601.8,0.632541]
[1723254794614,3.84232,2602.6,2601.9,3.84322]
[1723254796294,3.84232,2602.6,2601.7,6.32536]
[1723254796295,3.84223,2602.7,2602.0,6.32499]
[1723254796634,3.84223,2602.7,2602.2,3.84289]
[1723254796781,3.84194,2602.9,2602.2,7.68569]
[1723254797116,3.84194,2602.9,2602.4,2.4837]
[1723254797323,7.68335,2603.1,2602.4,6.32629]
[1723254797497,3.84165,2603.1,2602.5,0.68330314]
[1723254797694,3.84173,2603.0,2602.5,0.04606492]
[1723254798010,7.81774,2603.7,2602.5,0.04606492]
[1723254798011,3.84225,2602.7,2602.5,0.04606492]
[1723254798219,3.84225,2602.7,2602.0,6.32677]
[1723254798394,3.84225,2602.7,2602.6,0.04577424]
[1723254798583,3.84225,2602.7,2602.1,0.632677]
[1723254798824,7.6845,2602.7,2602.1,0.632677]
[1723254799024,7.6845,2602.7,2602.2,0.04577424]
[1723254799025,3.84225,2602.7,2602.2,0.04577424]
[1723254800039,3.84225,2602.7,2602.2,1.13059236]
[1723254800431,2.4792,2602.8,2602.2,8.81618236]
[1723254800646,2.4792,2602.8,2602.2,1.13059236]
[1723254800830,3.84137,2603.3,2602.6,3.84221]
[1723254801043,3.84137,2603.3,2602.8,2.4837]
[1723254801452,3.84158,2603.1,2602.9,0.04582874]
[1723254801662,3.84137,2603.3,2602.9,0.04582874]
[1723254802068,3.84151,2603.2,2602.9,0.04582874]
[1723254802581,3.84172,2603.0,2602.9,0.04582874]
[1723254802946,3.84203,2602.8,2602.4,2.2579]
[1723254803141,7.68413,2602.8,2602.4,2.2579]
[1723254803344,3.84203,2602.8,2602.5,0.04567433]
[1723254803542,7.68414,2602.8,2602.5,0.04567433]
[1723254803742,3.84207,2602.8,2602.5,0.04567433]
[1723254804342,3.84181,2603.0,2602.5,0.04567433]
[1723254804638,3.84195,2602.9,2602.5,0.04567433]
[1723254805048,3.84205,2602.8,2602.5,0.04567433]
[1723254805454,7.68449,2602.7,2602.5,0.04567433]
[1723254805650,3.84224,2602.7,2602.5,0.04567433]
[1723254805880,3.84191,2602.9,2602.5,0.04567433]
[1723254806057,3.84201,2602.8,2602.5,0.04567433]
[1723254806383,7.68388,2602.9,2602.5,0.04567433]
[1723254806593,3.84191,2602.9,2602.5,0.04567433]
[1723254807585,4.0891,2603.4,2602.5,0.04567433]
[1723254807586,7.68462,2602.6,2602.5,0.04567433]
[1723254808092,7.68566,2602.3,2601.8,9.7479]
[1723254808244,7.68566,2602.3,2601.9,0.04354592]
[1723254808245,3.84282,2602.3,2601.9,0.04354592]
[1723254808869,3.84232,2602.6,2601.9,3.88687592]
[1723254809080,3.84222,2602.7,2602.2,2.2579]
[1723254809281,3.84222,2602.7,2602.2,6.10078]
[1723254809485,3.84222,2602.7,2602.2,2.2579]
[1723254809644,3.84222,2602.7,2602.3,0.04354592]
[1723254809845,3.84222,2602.7,2602.2,2.2579]
[1723254810169,3.84206,2602.8,2602.3,0.04379116]
[1723254810376,3.84193,2602.9,2602.3,3.88640116]
[1723254810693,3.84193,2602.9,2602.4,0.043882]
[1723254810842,7.68388,2602.9,2602.4,0.043882]
[1723254811159,7.68389,2602.9,2602.4,0.043882]
[1723254811346,7.68392,2602.9,2602.4,0.043882]
[1723254811858,7.68388,2602.9,2602.4,0.043882]
[1723254812080,3.84205,2602.8,2602.4,0.043882]
[1723254812258,3.84219,2602.7,2602.2,2.48369]
[1723254812461,3.84219,2602.7,2602.3,0.043882]